[Event "VII Sunway Sitges Open 2020"]
[Site "Sitges"]
[Date "2020.12.16"]
[Round "4.15"]
[White "Mendonca, Leon Luke"]
[Black "Boyer, Mahel"]
[Result "1/2-1/2"]
[ECO "D37"]
[WhiteElo "2516"]
[BlackElo "2307"]
[Annotator "ChessBase"]
[PlyCount "118"]
[EventDate "2020.12.13"]
[EventType "swiss"]
[EventCountry "ESP"]
[SourceTitle "playchess.com"]
[Source "ChessBase"]
[SourceQuality "1"]
[TimeControl "40/5400+30:1800+30"]

1. d4 {[%emt 0:00:00]} d5 {[%emt 0:02:30]} 2. Nf3 {[%emt 0:03:18]} Nf6 {[%emt 0:02:26]} 3. c4 {[%emt 0:01:20]} e6 {[%emt 0:00:08]} 4. Nc3 {[%emt 0:00:43]} h6 5. g3 {[%emt 0:05:38]} Bd6 {[%emt 0:00:35]} 6. Bg2 {[%emt 0:01:23]} O-O {[%emt 0:00:11]} 7. O-O {[%emt 0:00:25]} Nc6 {[%emt 0:00:34]} 8. Nb5 {[%emt 0:22:36]} dxc4 {[%emt 0:00:39]} 9. Qc2 {[%emt 0:04:15]} a6 {[%emt 0:06:00]} 10. Nxd6 {[%emt 0:01:18]} cxd6 {[%emt 0:00:07]} 11. Qxc4 {[%emt 0:00:12]} Bd7 {[%emt 0:00:12]} 12. Bf4 {[%emt 0:18:32]} Qe7 {[%emt 0:00:17]} 13. Rfc1 {[%emt 0:02:19]} Rfc8 {[%emt 0:04:02]} 14. Qb3 {[%emt 0:02:58]} e5 {[%emt 0:06:17]} 15. dxe5 {[%emt 0:01:44]} dxe5 {[%emt 0:00:05]} 16. Be3 {[%emt 0:03:16]} Be6 {[%emt 0:00:21]} 17. Qa4 {[%emt 0:02:05]} Bd5 {[%emt 0:10:11]} 18. Rd1 {[%emt 0:10:32]} Qe6 {[%emt 0:04:35]} 19. Qa3 {[%emt 0:03:30]} a5 {[%emt 0:01:49]} 20. Rac1 {[%emt 0:07:20]} Bxa2 {[%emt 0:02:16]} 21. Rd6 {[%emt 0:01:10]} Qb3 {[%emt 0:00:14]} 22. Qxb3 {[%emt 0:03:54]} Bxb3 {[%emt 0:00:02]} 23. Nd2 {[%emt 0:00:09]} Be6 {[%emt 0:00:42]} 24. Ne4 {[%emt 0:01:55]} Ne8 {[%emt 0:07:29]} 25. Rdd1 {[%emt 0:00:18]} Nd4 {[%emt 0:01:02]} 26. Bxd4 {[%emt 0:00:35]} Rxc1 {[%emt 0:00:44]} 27. Rxc1 {[%emt 0:00:01]} exd4 {[%emt 0:00:04]} 28. Nc5 {[%emt 0:01:36]} Rc8 {[%emt 0:00:08]} 29. Bxb7 {[%emt 0:00:35]} Rc7 {[%emt 0:00:07]} 30. Ba6 {[%emt 0:00:46]} Bg4 {[%emt 0:02:33]} 31. f3 {[%emt 0:00:34]} Bf5 {[%emt 0:00:34]} 32. Nb3 {[%emt 0:00:23]} Be6 {[%emt 0:01:08]} 33. Nc5 {[%emt 0:00:20]} Bf5 {[%emt 0:02:16]} 34. Nb3 {[%emt 0:00:36]} Be6 {[%emt 0:00:44]} 35. Nc5 {[%emt 0:00:01]} Bf5 {[%emt 0:03:10]} 36. g4 {[%emt 0:01:04]} Be6 {[%emt 0:01:55]} 37. Nd3 {[%emt 0:00:35]} Rxc1+ {[%emt 0:01:47]} 38. Nxc1 {[%emt 0:00:00]} Nc7 {[%emt 0:00:14]} 39. Bd3 {[%emt 0:00:52]} Kf8 {[%emt 0:00:30]} 40. Kf2 {[%emt 0:00:00]} Ke7 {[%emt 0:00:00]} 41. e3 {[%emt 0:12:11]} dxe3+ {[%emt 0:02:24]} 42. Kxe3 {[%emt 0:00:09]} Kd6 {[%emt 0:04:31]} 43. Ne2 {[%emt 0:02:16]} Kc5 {[%emt 0:01:24]} 44. Nf4 {[%emt 0:01:52]} g5 {[%emt 0:05:13]} 45. Nxe6+ {[%emt 0:01:58]} Nxe6 {[%emt 0:01:26]} 46. Ke4 {[%emt 0:01:35]} Kb4 {[%emt 0:03:07]} 47. Bc2 {[%emt 0:01:05]} Nc5+ {[%emt 0:03:16]} 48. Kd4 {[%emt 0:03:37]} Nd7 {[%emt 0:01:04]} 49. f4 {[%emt 0:03:15]} f6 {[%emt 0:09:32]} 50. fxg5 {[%emt 0:02:07]} fxg5 {[%emt 0:00:06]} 51. Ke4 {[%emt 0:01:01]} Nb6 {[%emt 0:08:38]} 52. Kf5 {[%emt 0:00:37]} Nc4 {[%emt 0:00:16]} 53. Kg6 {[%emt 0:00:14]} Ne5+ {[%emt 0:05:40]} 54. Kh5 {[%emt 0:01:48]} Nf3 {[%emt 0:02:11]} 55. Kxh6 {[%emt 0:00:45]} Nxh2 {[%emt 0:00:17]} 56. Kxg5 {[%emt 0:00:04]} a4 {[%emt 0:00:09]} 57. Kf4 {[%emt 0:00:14]} Nxg4 {[%emt 0:00:05]} 58. Kxg4 {[%emt 0:00:11]} a3 {[%emt 0:00:04]} 59. bxa3+ {[%emt 0:00:11]} Kxa3 {[%emt 0:00:07]} 1/2-1/2

[Event "VII Sunway Sitges Open 2020"]
[Site "Sitges"]
[Date "2020.12.16"]
[Round "4.17"]
[White "Garriga Cazorla, Pere"]
[Black "Ortega Serra, Marc"]
[Result "1/2-1/2"]
[ECO "A14"]
[WhiteElo "2487"]
[BlackElo "2288"]
[Annotator "ChessBase"]
[PlyCount "72"]
[EventDate "2020.12.13"]
[EventType "swiss"]
[EventCountry "ESP"]
[SourceTitle "playchess.com"]
[Source "ChessBase"]
[SourceQuality "1"]
[TimeControl "40/5400+30:1800+30"]

1. Nf3 {[%emt 0:00:00]} Nf6 {[%emt 0:01:59]} 2. c4 {[%emt 0:00:29]} e6 {[%emt 0:00:10]} 3. g3 {[%emt 0:00:08]} d5 {[%emt 0:00:07]} 4. Bg2 {[%emt 0:00:07]} Be7 {[%emt 0:00:25]} 5. O-O O-O {[%emt 0:05:19]} 6. b3 {[%emt 0:03:21]} d4 {[%emt 0:00:17]} 7. e3 {[%emt 0:00:06]} c5 {[%emt 0:00:07]} 8. Ne5 {[%emt 0:00:10]} Nbd7 {[%emt 0:13:49]} 9. exd4 {[%emt 0:07:59]} cxd4 {[%emt 0:00:36]} 10. Nxd7 Nxd7 {[%emt 0:02:46]} 11. d3 {[%emt 0:02:38]} e5 {[%emt 0:03:09]} 12. f4 {[%emt 0:08:24]} exf4 13. gxf4 {[%emt 0:18:49]} Rb8 {[%emt 0:17:26]} 14. f5 {[%emt 0:15:55]} b5 {[%emt 0:01:54]} 15. Bf4 {[%emt 0:04:25]} Rb6 {[%emt 0:00:44]} 16. Nd2 {[%emt 0:00:42]} Nc5 {[%emt 0:09:10]} 17. Bg3 {[%emt 0:06:48]} Nxd3 {[%emt 0:08:41]} 18. cxb5 {[%emt 0:00:17]} Rxb5 {[%emt 0:07:30]} 19. f6 {[%emt 0:02:17]} Bxf6 {[%emt 0:00:47]} 20. Ne4 {[%emt 0:00:22]} Ne5 {[%emt 0:02:08]} 21. a4 {[%emt 0:05:13]} Rb6 {[%emt 0:00:19]} 22. a5 {[%emt 0:00:07]} Rb5 {[%emt 0:00:40]} 23. Nxf6+ {[%emt 0:00:11]} gxf6 {[%emt 0:00:08]} 24. Ra4 {[%emt 0:06:45]} Ng6 {[%emt 0:08:09]} 25. h4 {[%emt 0:06:55]} Be6 {[%emt 0:02:45]} 26. Rxd4 {[%emt 0:03:54]} Qxa5 {[%emt 0:00:02]} 27. b4 {[%emt 0:01:39]} Rxb4 {[%emt 0:02:54]} 28. Rxb4 {[%emt 0:00:57]} Qxb4 {[%emt 0:00:05]} 29. h5 {[%emt 0:00:07]} Ne5 {[%emt 0:03:48]} 30. Rf4 {[%emt 0:01:56]} Qc3 {[%emt 0:01:05]} 31. Bf2 {[%emt 0:00:37]} Nd3 {[%emt 0:01:22]} 32. Bd4 {[%emt 0:01:59]} Qc1 {[%emt 0:00:01]} 33. Qxc1 {[%emt 0:00:22]} Nxc1 {[%emt 0:00:02]} 34. Bf1 {[%emt 0:00:10]} f5 {[%emt 0:03:07]} 35. Bf6 {[%emt 0:01:01]} h6 {[%emt 0:00:01]} 36. Ra4 {[%emt 0:00:45]} Kh7 {[%emt 0:00:47]} 1/2-1/2

[Event "VII Sunway Sitges Open 2020"]
[Site "Sitges"]
[Date "2020.12.16"]
[Round "4.19"]
[White "Niemann, Hans Moke"]
[Black "Souhardo Basak"]
[Result "1-0"]
[ECO "E53"]
[WhiteElo "2472"]
[BlackElo "2216"]
[Annotator "ChessBase"]
[PlyCount "108"]
[EventDate "2020.12.13"]
[EventType "swiss"]
[EventCountry "ESP"]
[SourceTitle "playchess.com"]
[Source "ChessBase"]
[SourceQuality "1"]
[TimeControl "40/5400+30:1800+30"]

1. d4 Nf6 {[%emt 0:00:00]} 2. c4 {[%emt 0:00:00]} e6 3. Nc3 {[%emt 0:00:00]} Bb4 {[%emt 0:00:00]} 4. e3 {[%emt 0:00:00]} O-O 5. Bd3 {[%emt 0:00:14]} d5 {[%emt 0:01:33]} 6. Nf3 {[%emt 0:00:25]} c5 {[%emt 0:00:59]} 7. cxd5 {[%emt 0:00:07]} exd5 {[%emt 0:05:36]} 8. dxc5 {[%emt 0:00:10]} Nbd7 {[%emt 0:03:55]} 9. Bd2 {[%emt 0:00:06]} Nxc5 10. Be2 {[%emt 0:00:17]} Ba5 {[%emt 0:07:43]} 11. O-O Nce4 {[%emt 0:01:42]} 12. Nxe4 {[%emt 0:01:58]} dxe4 {[%emt 0:00:14]} 13. Nd4 {[%emt 0:00:00]} Bxd2 {[%emt 0:19:03]} 14. Qxd2 {[%emt 0:07:05]} Qb6 {[%emt 0:10:33]} 15. a3 {[%emt 0:00:43]} Rd8 {[%emt 0:07:25]} 16. Qb4 {[%emt 0:00:21]} Nd5 {[%emt 0:00:02]} 17. Qxb6 {[%emt 0:01:35]} Nxb6 18. Rfc1 {[%emt 0:00:27]} Bd7 {[%emt 0:06:06]} 19. Rc7 {[%emt 0:01:54]} Rab8 {[%emt 0:03:04]} 20. Rac1 {[%emt 0:01:52]} Rbc8 {[%emt 0:03:40]} 21. h3 {[%emt 0:02:13]} a6 22. R1c2 {[%emt 0:00:49]} Rb8 {[%emt 0:09:05]} 23. Bg4 {[%emt 0:00:03]} Bxg4 {[%emt 0:01:15]} 24. hxg4 {[%emt 0:05:34]} Nd5 {[%emt 0:01:04]} 25. R7c5 {[%emt 0:14:00]} g6 26. Kh2 {[%emt 0:00:10]} h6 {[%emt 0:01:45]} 27. Kg3 {[%emt 0:06:46]} Rd7 {[%emt 0:01:47]} 28. R5c4 {[%emt 0:01:02]} Kg7 29. Nb3 {[%emt 0:01:21]} Nf6 {[%emt 0:03:31]} 30. Rc7 {[%emt 0:00:30]} Rbd8 {[%emt 0:01:07]} 31. Rxd7 {[%emt 0:00:03]} Rxd7 {[%emt 0:00:01]} 32. Nc5 {[%emt 0:00:00]} Re7 {[%emt 0:02:38]} 33. b4 {[%emt 0:00:00]} Ne8 {[%emt 0:02:35]} 34. Rd2 {[%emt 0:00:15]} Kf6 {[%emt 0:01:05]} 35. Rd4 {[%emt 0:02:41]} Nc7 {[%emt 0:00:58]} 36. a4 {[%emt 0:01:28]} Ne6 37. Nd7+ {[%emt 0:00:16]} Kg5 {[%emt 0:01:55]} 38. Rd5+ {[%emt 0:00:30]} f5 {[%emt 0:00:01]} 39. f4+ {[%emt 0:01:21]} exf3 {[%emt 0:00:02]} 40. gxf3 {[%emt 0:00:00]} h5 {[%emt 0:00:00]} 41. f4+ {[%emt 0:03:10]} Kh6 {[%emt 0:00:16]} 42. g5+ {[%emt 0:00:00]} Kg7 {[%emt 0:00:28]} 43. Rd6 {[%emt 0:08:53]} Nf8 {[%emt 0:01:08]} 44. Nxf8 {[%emt 0:00:30]} Kxf8 {[%emt 0:00:30]} 45. Rxg6 {[%emt 0:00:00]} Rxe3+ {[%emt 0:00:00]} 46. Kh4 Re4 47. Rf6+ {[%emt 0:00:21]} Kg7 {[%emt 0:00:33]} 48. Rxf5 {[%emt 0:00:03]} Rxb4 {[%emt 0:00:02]} 49. Kxh5 {[%emt 0:00:00]} Rxa4 {[%emt 0:01:28]} 50. g6 {[%emt 0:00:00]} Rb4 {[%emt 0:03:52]} 51. Rf7+ {[%emt 0:00:11]} Kg8 {[%emt 0:00:00]} 52. f5 {[%emt 0:00:00]} Rb5 {[%emt 0:02:11]} 53. Kh6 a5 54. f6 {[%emt 0:00:27]} Rb1 {[%emt 0:03:11]} 1-0

[Event "VII Sunway Sitges Open 2020"]
[Site "Sitges"]
[Date "2020.12.16"]
[Round "4.20"]
[White "Sochacki, Christophe"]
[Black "Hernando Rodrigo, Julio Antonio"]
[Result "1-0"]
[ECO "A45"]
[WhiteElo "2469"]
[BlackElo "2275"]
[Annotator "ChessBase"]
[PlyCount "49"]
[EventDate "2020.12.13"]
[EventType "swiss"]
[EventCountry "ESP"]
[SourceTitle "playchess.com"]
[Source "ChessBase"]
[SourceQuality "1"]
[TimeControl "40/5400+30:1800+30"]

1. d4 {[%emt 0:00:00]} Nf6 {[%emt 0:02:50]} 2. Bg5 {[%emt 0:00:00]} d5 {[%emt 0:02:56]} 3. e3 {[%emt 0:00:00]} c5 {[%emt 0:02:33]} 4. Nf3 {[%emt 0:00:29]} Nc6 {[%emt 0:00:43]} 5. c3 {[%emt 0:02:16]} Bf5 {[%emt 0:00:51]} 6. Nbd2 {[%emt 0:05:23]} e6 {[%emt 0:00:30]} 7. Nh4 {[%emt 0:02:21]} Bg6 {[%emt 0:16:26]} 8. Qb3 {[%emt 0:05:55]} Qb6 {[%emt 0:13:21]} 9. Nxg6 {[%emt 0:04:24]} hxg6 {[%emt 0:00:07]} 10. Bf4 {[%emt 0:13:03]} c4 {[%emt 0:07:51]} 11. Qc2 {[%emt 0:01:25]} Nh5 {[%emt 0:02:18]} 12. Be2 {[%emt 0:19:18]} Nxf4 {[%emt 0:00:47]} 13. exf4 {[%emt 0:00:02]} Bd6 {[%emt 0:07:39]} 14. g3 {[%emt 0:00:02]} Qc7 {[%emt 0:02:33]} 15. Nf3 {[%emt 0:06:03]} O-O-O {[%emt 0:05:43]} 16. h4 {[%emt 0:08:41]} Kb8 {[%emt 0:00:20]} 17. Kf1 {[%emt 0:00:29]} f6 {[%emt 0:03:22]} 18. Qxg6 {[%emt 0:03:07]} Rh6 {[%emt 0:06:08]} 19. Qg4 {[%emt 0:01:05]} Qf7 {[%emt 0:03:02]} 20. Rd1 {[%emt 0:05:13]} b5 {[%emt 0:02:13]} 21. Kg2 {[%emt 0:01:03]} Rg6 {[%emt 0:01:04]} 22. Qh3 {[%emt 0:00:02]} Rh8 {[%emt 0:00:26]} 23. f5 {[%emt 0:00:44]} exf5 {[%emt 0:00:29]} 24. Qxf5 {[%emt 0:00:03]} Rh5 {[%emt 0:03:37]} 25. Ne5 {[%emt 0:03:43]} 1-0

[Event "VII Sunway Sitges Open 2020"]
[Site "Sitges"]
[Date "2020.12.16"]
[Round "4.21"]
[White "Ayats Llobera, Gerard"]
[Black "Exposito Amaro, Josue"]
[Result "1-0"]
[ECO "C42"]
[WhiteElo "2400"]
[BlackElo "2334"]
[Annotator "ChessBase"]
[PlyCount "41"]
[EventDate "2020.12.13"]
[EventType "swiss"]
[EventCountry "ESP"]
[SourceTitle "playchess.com"]
[Source "ChessBase"]
[SourceQuality "1"]
[TimeControl "40/5400+30:1800+30"]

1. e4 {[%emt 0:06:46]} e5 {[%emt 0:00:00]} 2. Nf3 {[%emt 0:00:04]} Nf6 {[%emt 0:00:00]} 3. Nxe5 {[%emt 0:00:40]} d6 {[%emt 0:00:16]} 4. Nf3 {[%emt 0:00:00]} Nxe4 {[%emt 0:00:24]} 5. Nc3 {[%emt 0:00:35]} Nf6 {[%emt 0:00:25]} 6. d4 Be7 7. Bd3 {[%emt 0:15:18]} h6 {[%emt 0:00:37]} 8. h3 {[%emt 0:02:19]} b6 9. Be3 {[%emt 0:03:29]} Bb7 {[%emt 0:08:04]} 10. Qe2 {[%emt 0:01:25]} Nc6 {[%emt 0:09:34]} 11. a3 a6 {[%emt 0:07:55]} 12. Nh4 {[%emt 0:03:03]} g6 {[%emt 0:03:33]} 13. O-O {[%emt 0:02:59]} d5 {[%emt 0:04:46]} 14. Rfe1 {[%emt 0:05:40]} Ne4 {[%emt 0:03:35]} 15. Nxe4 dxe4 {[%emt 0:23:07]} 16. Bxe4 {[%emt 0:01:58]} Qd6 {[%emt 0:07:09]} 17. Bf4 {[%emt 0:06:15]} Qd7 18. Nf3 {[%emt 0:02:35]} g5 {[%emt 0:17:51]} 19. Bxc6 {[%emt 0:05:57]} Bxc6 {[%emt 0:00:22]} 20. Ne5 Qe6 {[%emt 0:01:31]} 21. Nxc6 {[%emt 0:00:44]} 1-0

[Event "VII Sunway Sitges Open 2020"]
[Site "Sitges"]
[Date "2020.12.16"]
[Round "4.22"]
[White "Jimenez Ruano, Adrian"]
[Black "Valenzuela Gomez, Fernando"]
[Result "1-0"]
[ECO "E35"]
[WhiteElo "2279"]
[BlackElo "2390"]
[Annotator "ChessBase"]
[PlyCount "81"]
[EventDate "2020.12.13"]
[EventType "swiss"]
[EventCountry "ESP"]
[SourceTitle "playchess.com"]
[Source "ChessBase"]
[SourceQuality "1"]
[TimeControl "40/5400+30:1800+30"]

1. d4 Nf6 {[%emt 0:10:03]} 2. c4 {[%emt 0:00:00]} e6 {[%emt 0:00:03]} 3. Nc3 {[%emt 0:00:00]} Bb4 {[%emt 0:00:05]} 4. Qc2 {[%emt 0:00:00]} d5 {[%emt 0:00:10]} 5. cxd5 {[%emt 0:00:00]} exd5 {[%emt 0:00:06]} 6. Bg5 {[%emt 0:00:02]} h6 {[%emt 0:00:24]} 7. Bh4 {[%emt 0:00:14]} O-O 8. e3 {[%emt 0:03:20]} Be6 {[%emt 0:00:19]} 9. Nf3 {[%emt 0:02:29]} Bd6 {[%emt 0:00:52]} 10. Bd3 {[%emt 0:07:58]} Nbd7 {[%emt 0:01:47]} 11. O-O {[%emt 0:06:56]} c6 {[%emt 0:03:09]} 12. Rab1 Qc7 {[%emt 0:01:54]} 13. Rfc1 {[%emt 0:14:25]} Rfc8 14. Bf5 {[%emt 0:01:44]} Bxf5 {[%emt 0:06:31]} 15. Qxf5 {[%emt 0:03:02]} a6 16. b4 g6 {[%emt 0:14:01]} 17. Qd3 {[%emt 0:04:04]} g5 {[%emt 0:09:16]} 18. Bg3 {[%emt 0:00:11]} Bxg3 {[%emt 0:00:10]} 19. hxg3 {[%emt 0:00:06]} Qd6 {[%emt 0:00:08]} 20. a4 {[%emt 0:13:17]} Kg7 {[%emt 0:15:21]} 21. Nd2 {[%emt 0:09:14]} Re8 22. b5 {[%emt 0:00:11]} axb5 {[%emt 0:07:48]} 23. axb5 c5 24. dxc5 {[%emt 0:02:13]} Nxc5 {[%emt 0:00:44]} 25. Qd4 {[%emt 0:01:36]} Ne6 26. Nde4 Qd8 {[%emt 0:09:19]} 27. Qxf6+ {[%emt 0:03:41]} Qxf6 {[%emt 0:00:05]} 28. Nxf6 {[%emt 0:00:21]} Kxf6 {[%emt 0:00:14]} 29. Nxd5+ Kg6 30. Nc7 {[%emt 0:18:18]} Nxc7 {[%emt 0:05:12]} 31. Rxc7 {[%emt 0:00:05]} Red8 32. Rxb7 {[%emt 0:03:04]} Ra2 {[%emt 0:03:11]} 33. b6 {[%emt 0:04:06]} Re2 {[%emt 0:02:50]} 34. g4 f6 {[%emt 0:06:41]} 35. Ra7 {[%emt 0:02:29]} Red2 {[%emt 0:01:57]} 36. b7 {[%emt 0:01:34]} Rd1+ {[%emt 0:00:18]} 37. Rxd1 {[%emt 0:00:09]} Rxd1+ {[%emt 0:00:09]} 38. Kh2 {[%emt 0:00:01]} Rb1 {[%emt 0:00:15]} 39. Kg3 h5 {[%emt 0:01:25]} 40. gxh5+ {[%emt 0:00:00]} Kxh5 {[%emt 0:00:00]} 41. Kf3 {[%emt 0:04:58]} 1-0

[Event "VII Sunway Sitges Open 2020"]
[Site "Sitges"]
[Date "2020.12.16"]
[Round "4.23"]
[White "Degardin, Sylvain"]
[Black "Garcia Ramos, Daniel"]
[Result "0-1"]
[ECO "C76"]
[WhiteElo "2209"]
[BlackElo "2380"]
[Annotator "ChessBase"]
[PlyCount "64"]
[EventDate "2020.12.13"]
[EventType "swiss"]
[EventCountry "ESP"]
[SourceTitle "playchess.com"]
[Source "ChessBase"]
[SourceQuality "1"]
[TimeControl "40/5400+30:1800+30"]

1. e4 {[%emt 0:11:01]} e5 {[%emt 0:00:00]} 2. Nf3 {[%emt 0:00:22]} Nc6 {[%emt 0:00:00]} 3. Bb5 {[%emt 0:00:19]} a6 {[%emt 0:00:08]} 4. Ba4 {[%emt 0:00:28]} d6 {[%emt 0:00:27]} 5. c3 {[%emt 0:00:51]} Bd7 {[%emt 0:00:31]} 6. d4 {[%emt 0:00:45]} g6 {[%emt 0:00:48]} 7. O-O {[%emt 0:01:41]} Bg7 {[%emt 0:00:31]} 8. Bg5 {[%emt 0:02:34]} f6 {[%emt 0:01:11]} 9. Be3 {[%emt 0:00:23]} Nh6 {[%emt 0:00:19]} 10. h3 {[%emt 0:00:55]} Nf7 {[%emt 0:01:11]} 11. dxe5 {[%emt 0:00:43]} dxe5 {[%emt 0:02:23]} 12. Bc5 {[%emt 0:04:51]} f5 {[%emt 0:02:24]} 13. exf5 {[%emt 0:04:05]} gxf5 {[%emt 0:01:06]} 14. Re1 {[%emt 0:08:49]} Qf6 {[%emt 0:06:13]} 15. c4 {[%emt 0:11:01]} b6 {[%emt 0:08:39]} 16. Ba3 {[%emt 0:03:29]} O-O-O {[%emt 0:01:38]} 17. Nc3 {[%emt 0:00:59]} e4 {[%emt 0:01:43]} 18. Nd5 {[%emt 0:02:27]} Qh6 {[%emt 0:01:18]} 19. Nh2 {[%emt 0:06:00]} Nfe5 {[%emt 0:04:39]} 20. Ne7+ {[%emt 0:07:34]} Kb7 {[%emt 0:03:18]} 21. Qd5 {[%emt 0:02:37]} Be6 {[%emt 0:23:53]} 22. Bxc6+ {[%emt 0:04:14]} Kb8 {[%emt 0:00:11]} 23. Ng4 {[%emt 0:05:39]} Nxg4 {[%emt 0:10:07]} 24. Nxf5 {[%emt 0:02:05]} Qf4 {[%emt 0:00:42]} 25. hxg4 {[%emt 0:08:07]} Bxd5 {[%emt 0:01:50]} 26. Bxd5 {[%emt 0:00:40]} Rxd5 {[%emt 0:01:45]} 27. cxd5 {[%emt 0:00:47]} Be5 {[%emt 0:00:21]} 28. Ne3 {[%emt 0:06:06]} h5 {[%emt 0:01:51]} 29. gxh5 {[%emt 0:02:40]} Rxh5 {[%emt 0:00:14]} 30. Kf1 {[%emt 0:00:41]} Bd4 {[%emt 0:00:44]} 31. Rad1 {[%emt 0:01:52]} Bxe3 {[%emt 0:00:27]} 32. Rxe3 {[%emt 0:00:08]} Rh1+ {[%emt 0:00:07]} 0-1

[Event "VII Sunway Sitges Open 2020"]
[Site "Sitges"]
[Date "2020.12.16"]
[Round "4.25"]
[White "Garcia Martin, Marta"]
[Black "Cano Sevilla, Ivan"]
[Result "1-0"]
[ECO "B36"]
[WhiteElo "2342"]
[BlackElo "2026"]
[Annotator "ChessBase"]
[PlyCount "71"]
[EventDate "2020.12.13"]
[EventType "swiss"]
[EventCountry "ESP"]
[SourceTitle "playchess.com"]
[Source "ChessBase"]
[SourceQuality "1"]
[TimeControl "40/5400+30:1800+30"]

1. e4 {[%emt 0:00:00]} c5 {[%emt 0:00:00]} 2. Nf3 {[%emt 0:00:00]} Nc6 {[%emt 0:00:00]} 3. d4 {[%emt 0:00:14]} cxd4 {[%emt 0:00:00]} 4. Nxd4 {[%emt 0:00:05]} g6 {[%emt 0:00:23]} 5. c4 {[%emt 0:00:18]} Nf6 {[%emt 0:00:04]} 6. Nc3 {[%emt 0:00:12]} d6 {[%emt 0:00:02]} 7. f3 {[%emt 0:00:55]} Nxd4 {[%emt 0:00:44]} 8. Qxd4 {[%emt 0:00:06]} Bg7 {[%emt 0:00:03]} 9. Be3 {[%emt 0:01:01]} O-O {[%emt 0:00:06]} 10. Qd2 {[%emt 0:00:09]} Be6 {[%emt 0:00:02]} 11. Rc1 {[%emt 0:07:11]} Qa5 {[%emt 0:00:06]} 12. Bd3 {[%emt 0:04:11]} Rfc8 {[%emt 0:01:58]} 13. b3 {[%emt 0:00:23]} a6 {[%emt 0:00:34]} 14. Ne2 {[%emt 0:01:53]} Qxd2+ {[%emt 0:01:08]} 15. Kxd2 {[%emt 0:00:14]} Nd7 {[%emt 0:03:11]} 16. Nf4 {[%emt 0:02:59]} Bh6 {[%emt 0:02:58]} 17. h4 {[%emt 0:05:18]} Nc5 {[%emt 0:03:53]} 18. Be2 {[%emt 0:01:05]} Bg7 {[%emt 0:08:58]} 19. g4 {[%emt 0:27:25]} a5 {[%emt 0:05:20]} 20. g5 {[%emt 0:11:12]} Na6 {[%emt 0:04:00]} 21. Rb1 {[%emt 0:08:45]} a4 {[%emt 0:07:02]} 22. Nxe6 {[%emt 0:00:17]} fxe6 {[%emt 0:00:04]} 23. b4 {[%emt 0:00:51]} a3 {[%emt 0:00:16]} 24. Rb3 {[%emt 0:00:46]} b5 {[%emt 0:04:50]} 25. Rc1 {[%emt 0:04:07]} Bb2 {[%emt 0:00:03]} 26. Rc2 {[%emt 0:00:06]} bxc4 {[%emt 0:04:35]} 27. Bxc4 {[%emt 0:03:41]} d5 {[%emt 0:07:02]} 28. Bxa6 {[%emt 0:05:02]} Rxc2+ {[%emt 0:00:05]} 29. Kxc2 {[%emt 0:00:04]} Rxa6 {[%emt 0:00:02]} 30. b5 {[%emt 0:00:07]} Ra8 {[%emt 0:00:10]} 31. b6 {[%emt 0:00:36]} d4 {[%emt 0:01:12]} 32. b7 {[%emt 0:00:25]} Rb8 {[%emt 0:00:04]} 33. Bf4 {[%emt 0:03:57]} e5 {[%emt 0:00:01]} 34. Bg3 {[%emt 0:01:29]} Kf7 {[%emt 0:00:52]} 35. Kd3 {[%emt 0:00:07]} Ke6 {[%emt 0:00:37]} 36. Rb6+ {[%emt 0:00:12]} 1-0

[Event "VII Sunway Sitges Open 2020"]
[Site "Sitges"]
[Date "2020.12.16"]
[Round "4.26"]
[White "Rodriguez Redondo, Adhara"]
[Black "Yu, Jennifer"]
[Result "0-1"]
[ECO "C50"]
[WhiteElo "2183"]
[BlackElo "2315"]
[Annotator "ChessBase"]
[PlyCount "100"]
[EventDate "2020.12.13"]
[EventType "swiss"]
[EventCountry "ESP"]
[SourceTitle "playchess.com"]
[Source "ChessBase"]
[SourceQuality "1"]
[TimeControl "40/5400+30:1800+30"]

1. e4 {[%emt 0:00:00]} e5 2. Nf3 Nc6 {[%emt 0:00:00]} 3. Bc4 {[%emt 0:00:00]} Bc5 {[%emt 0:00:00]} 4. d3 {[%emt 0:00:00]} Nf6 {[%emt 0:00:00]} 5. O-O {[%emt 0:00:18]} d6 {[%emt 0:00:18]} 6. c3 {[%emt 0:00:07]} h6 7. Nbd2 {[%emt 0:04:23]} O-O {[%emt 0:02:13]} 8. h3 {[%emt 0:01:15]} a5 {[%emt 0:02:03]} 9. a4 {[%emt 0:03:02]} Be6 10. Bxe6 {[%emt 0:11:36]} fxe6 {[%emt 0:00:37]} 11. Nc4 {[%emt 0:00:57]} Qe8 {[%emt 0:08:56]} 12. Be3 {[%emt 0:10:26]} Bxe3 13. Nxe3 {[%emt 0:02:13]} Nh5 {[%emt 0:13:23]} 14. g3 {[%emt 0:07:17]} Qf7 {[%emt 0:11:38]} 15. Nh4 {[%emt 0:08:05]} Kh7 {[%emt 0:04:09]} 16. Kh2 {[%emt 0:04:52]} Rad8 {[%emt 0:09:58]} 17. Nhg2 {[%emt 0:06:53]} d5 {[%emt 0:02:25]} 18. exd5 {[%emt 0:02:01]} exd5 {[%emt 0:01:23]} 19. f4 {[%emt 0:04:07]} d4 20. Ng4 {[%emt 0:04:40]} dxc3 {[%emt 0:12:26]} 21. bxc3 {[%emt 0:00:28]} Qg6 {[%emt 0:02:43]} 22. fxe5 {[%emt 0:06:00]} Nxe5 {[%emt 0:08:00]} 23. d4 {[%emt 0:06:44]} Rxf1 {[%emt 0:00:43]} 24. Qxf1 {[%emt 0:00:06]} Nxg4+ {[%emt 0:00:34]} 25. hxg4 Qxg4 {[%emt 0:00:08]} 26. Qd3+ {[%emt 0:00:11]} Qg6 {[%emt 0:05:04]} 27. Qxg6+ {[%emt 0:00:43]} Kxg6 {[%emt 0:00:02]} 28. Nh4+ {[%emt 0:01:39]} Kf7 {[%emt 0:00:13]} 29. Kg2 {[%emt 0:02:04]} Re8 {[%emt 0:01:34]} 30. Kf3 {[%emt 0:04:53]} Nf6 {[%emt 0:00:09]} 31. Rc1 {[%emt 0:02:38]} g5 {[%emt 0:06:50]} 32. Nf5 {[%emt 0:01:55]} h5 {[%emt 0:00:05]} 33. Ne3 {[%emt 0:03:21]} g4+ {[%emt 0:03:10]} 34. Kf2 {[%emt 0:00:05]} Ne4+ {[%emt 0:03:04]} 35. Kg2 {[%emt 0:00:07]} Ng5 {[%emt 0:02:24]} 36. Kf2 {[%emt 0:02:01]} Kg6 {[%emt 0:00:26]} 37. Rc2 {[%emt 0:01:19]} Ne4+ {[%emt 0:01:50]} 38. Kg2 {[%emt 0:00:16]} Nxg3 {[%emt 0:00:16]} 39. Nd5 {[%emt 0:02:05]} Nf5 {[%emt 0:00:30]} 40. Nxc7 {[%emt 0:00:00]} Ne3+ {[%emt 0:00:00]} 41. Kg1 {[%emt 0:09:59]} Rf8 {[%emt 0:12:25]} 42. Re2 {[%emt 0:02:11]} Rf1+ {[%emt 0:00:28]} 43. Kh2 {[%emt 0:00:07]} Rf3 {[%emt 0:00:07]} 44. Re1 {[%emt 0:01:13]} g3+ {[%emt 0:01:38]} 45. Kg1 {[%emt 0:00:34]} h4 {[%emt 0:04:58]} 46. Ne6 h3 47. Nf4+ {[%emt 0:03:14]} Kg5 {[%emt 0:00:59]} 48. Ne2 {[%emt 0:03:46]} h2+ {[%emt 0:00:20]} 49. Kh1 {[%emt 0:00:04]} Rf1+ {[%emt 0:00:08]} 50. Rxf1 {[%emt 0:00:08]} g2+ {[%emt 0:00:04]} 0-1